bitfinex/quotes_ETHUSD_20220218
["timestamp","ask_amount","ask_price","bid_price","bid_amount"]
[1645178681857,0.3,2927.2,2926.8,1.45710719]
[1645178682058,0.49,2927.1,2926.8,1.45710719]
[1645178682257,1.07352614,2926.9,2926.8,1.45710719]
[1645178682858,0.3,2926.9,2926.6,1.46052123]
[1645178683058,1.34491,2927.1,2926.6,1.46052123]
[1645178683059,1.64491,2927.1,2926.6,1.46052123]
[1645178683305,0.8549,2927.0,2926.6,1.46052123]
[1645178683508,4.3549,2927.0,2926.6,1.46052123]
[1645178683708,0.8549,2927.0,2926.6,1.46263276]
[1645178683916,0.8549,2927.0,2926.7,1.45710719]
[1645178683917,1.1868089,2926.9,2926.7,1.45710719]
[1645178684311,1.4868089,2926.9,2926.7,1.45710719]
[1645178684511,2.3417089,2926.9,2926.7,1.45710719]
[1645178684710,2.3417089,2926.9,2926.7,0.00211149]
[1645178685111,3.1966389,2926.9,2926.7,0.00211149]
[1645178685312,3.1966389,2926.9,2926.7,1.45933808]
[1645178685712,3.1966389,2926.9,2926.7,1.45722659]
[1645178685912,3.1966389,2926.9,2926.7,0.0044504]
[1645178686314,5.87565781,2926.9,2926.7,0.0044504]
[1645178686517,3.5,2926.8,2926.7,0.0044504]
[1645178686714,7.58564781,2926.9,2926.7,0.0044504]
[1645178686914,7.58564781,2926.9,2926.6,0.00341404]
[1645178687151,3.5,2926.8,2926.6,0.00793991]
[1645178687553,7.58564781,2926.9,2926.6,0.00793991]
[1645178688152,7.58564781,2926.9,2926.6,0.00341404]
[1645178688353,7.58564781,2926.9,2926.6,0.00793991]
[1645178689353,7.58564781,2926.9,2926.6,0.00227517]
[1645178689553,7.58564781,2926.9,2926.6,0.00680104]
[1645178689554,3.5,2926.8,2926.6,0.00680104]
[1645178689855,0.49,2926.7,2926.6,0.00680104]
[1645178690554,0.49,2926.7,2926.6,0.00227517]
[1645178691608,3.99,2926.7,2926.6,0.00227517]
[1645178691910,0.49,2926.7,2926.6,0.00227517]
[1645178692706,3.99,2926.7,2926.6,0.00227517]
[1645178692909,1.49,2926.7,2926.6,0.00227517]
[1645178693108,1.59926894,2926.7,2926.6,0.00227517]
[1645178693513,5.09926894,2926.7,2926.6,0.00227517]
[1645178694313,2.8,2926.6,2926.5,0.00444759]
[1645178694556,7.64503,2926.6,2926.5,0.00444759]
[1645178695452,7.64503,2926.6,2926.4,0.03096718]
[1645178695453,10.3553,2926.6,2926.4,0.03096718]
[1645178695656,3.5,2926.5,2926.4,0.03096718]
[1645178695854,4.99,2926.5,2926.4,0.03096718]
[1645178696753,1.49,2926.5,2926.4,0.03096718]
[1645178699110,1.49,2926.5,2926.3,0.00478616]
[1645178699111,6.0,2926.4,2926.3,0.00478616]
[1645178699312,24.42743,2926.4,2926.3,0.01764232]
[1645178699513,55.54906191,2926.4,2926.3,0.01764232]
[1645178699713,55.54906191,2926.4,2925.6,0.00453376]
[1645178699714,6.0,2926.3,2925.6,0.00453376]
[1645178699916,6.127,2925.9,2925.6,0.00453376]
[1645178700118,1.53810499,2925.8,2924.9,7.48549912]
[1645178700312,1.1769942,2925.3,2924.9,7.31469912]
[1645178700511,0.49,2925.3,2924.9,7.31469912]
[1645178701510,1.42057113,2925.3,2924.9,7.31469912]
[1645178701715,2.57596113,2925.3,2924.9,7.31469912]
[1645178702361,2.57596113,2925.3,2924.9,7.24222935]
[1645178702556,0.85539,2925.2,2924.9,0.00859596]
[1645178702756,0.85539,2925.2,2925.1,0.00478285]
[1645178702757,2.56616,2925.2,2925.1,0.00478285]
[1645178702954,3.05616,2925.2,2925.1,0.00478285]
[1645178703760,3.05616,2925.2,2924.9,0.0040622]
[1645178703961,3.05616,2925.2,2925.0,0.00478294]
[1645178704360,0.85536,2925.1,2925.0,0.00478294]
[1645178704664,2.64536,2925.1,2925.0,0.00884514]
[1645178704863,2.64536,2925.1,2925.0,0.0040622]
[1645178706403,1.15536,2925.1,2924.6,0.0081244]
[1645178706903,0.85536,2925.1,2924.6,0.0081244]
[1645178707507,0.85536,2925.1,2924.7,0.00476052]
[1645178708304,1.15536,2925.1,2924.7,0.00476052]
[1645178708508,1.15536,2925.1,2924.6,0.0081244]
[1645178708709,1.71077,2924.9,2924.8,0.00476048]
[1645178708910,2.56618,2924.9,2924.8,0.00476048]
[1645178709757,2.56618,2924.9,2924.8,0.0081244]
[1645178710161,1.71077,2924.9,2924.8,0.0081244]
[1645178710356,1.71077,2924.9,2924.8,0.00698553]
[1645178710757,0.85538,2925.0,2924.8,0.00698553]
[1645178711755,0.03813475,2924.9,2924.8,0.00698553]
[1645178712956,0.33813475,2924.9,2924.8,0.00698553]
[1645178713155,0.03813475,2924.9,2924.8,0.00698553]
[1645178713409,0.33813475,2924.9,2924.8,0.00698553]
[1645178713606,0.03813475,2924.9,2924.8,0.00698553]
[1645178713906,0.33813475,2924.9,2924.8,0.00698553]
[1645178715108,1.19455189,2924.9,2924.8,0.00698553]
[1645178715411,0.33813475,2924.9,2924.4,1.21896206]
[1645178715609,0.85542,2924.8,2924.4,1.21896206]
[1645178715808,0.85542,2924.8,2924.4,0.0162488]
[1645178716409,0.33813475,2924.9,2924.4,0.0162488]
[1645178716609,0.03813475,2924.9,2924.4,0.0162488]
[1645178717157,0.03813475,2924.9,2924.5,1.14817241]
[1645178717858,0.03813475,2924.9,2924.5,1.16442121]
[1645178718061,0.85534,2924.8,2924.5,1.16442121]
[1645178718260,0.3,2924.8,2924.5,1.16442121]
[1645178718861,0.03813475,2924.9,2924.5,1.16442121]
[1645178719260,0.33813475,2924.9,2924.5,1.16442121]
[1645178719662,0.33813475,2924.9,2924.6,0.00476064]
[1645178719863,0.03813475,2924.9,2924.6,0.02100944]
[1645178720462,0.03813475,2924.9,2924.6,0.0162488]
[1645178720665,0.85534,2924.8,2924.6,0.0162488]
[1645178720904,0.85534,2924.8,2924.6,0.02100948]
[1645178721103,1.15534,2924.8,2924.6,0.02100948]
[1645178721706,1.15534,2924.8,2924.6,0.0162488]
[1645178721904,1.15534,2924.8,2924.6,0.02100944]
[1645178722604,0.85534,2924.8,2924.6,0.02100944]
[1645178722803,0.03813475,2924.9,2924.6,0.93075944]
[1645178723005,0.03813475,2924.9,2924.7,0.00451373]
[1645178723208,0.03813475,2924.9,2924.6,0.0162488]
[1645178723412,0.03813475,2924.9,2924.3,0.00352784]
[1645178723610,0.03813475,2924.9,2924.3,0.01208904]
[1645178723910,0.03813475,2924.9,2924.3,0.86741174]
[1645178724112,0.85534,2924.8,2924.3,0.86741174]
[1645178724311,0.85534,2924.8,2924.3,0.01208904]
[1645178724312,1.15534,2924.8,2924.3,0.01208904]
[1645178727159,1.7109,2924.7,2924.3,0.01208904]
[1645178728159,1.7109,2924.7,2924.4,0.0047608]
[1645178728416,3.42187,2924.7,2924.4,0.0047608]
[1645178728611,0.3,2924.6,2924.4,0.0047608]
[1645178729011,0.3,2924.6,2924.3,0.0085612]
[1645178729211,0.85553,2924.5,2924.3,0.0085612]
[1645178729413,0.85553,2924.5,2924.4,0.0047608]
[1645178730111,0.85553,2924.5,2924.3,0.0085612]
[1645178730313,1.71108,2924.5,2924.3,0.0085612]
[1645178730513,1.71108,2924.5,2924.3,0.01316656]
[1645178730514,0.3,2924.4,2924.3,0.01316656]
[1645178731413,0.3,2924.4,2924.3,0.00742233]
[1645178734559,1.15553,2924.5,2924.3,0.00742233]
[1645178735360,1.15553,2924.5,2924.3,0.01218322]
[1645178736212,1.15553,2924.5,2924.3,0.00742233]
[1645178736409,1.15553,2924.5,2924.3,0.00476089]
[1645178736609,1.71117,2924.4,2924.3,0.00476089]
[1645178736812,1.74015131,2924.4,2924.3,0.00476089]
[1645178737212,3.08574131,2924.4,2924.3,0.00476089]
[1645178737611,3.08574131,2924.4,2924.2,0.00476093]
[1645178737811,0.98103154,2924.3,2924.2,0.00476093]
[1645178738013,1.47103154,2924.3,2924.2,0.00476093]
[1645178738212,1.77103154,2924.3,2924.2,0.00476093]
[1645178738615,0.85573,2924.2,2924.0,0.06158238]
[1645178738921,0.85573,2924.2,2924.1,0.00476101]
[1645178739117,1.34573,2924.2,2924.1,0.02188341]
[1645178739567,6.0,2924.1,2923.8,0.0433697]
[1645178739764,6.0,2924.1,2923.6,0.0501]
[1645178739765,6.0,2923.9,2923.6,0.0501]
[1645178739964,7.47295,2923.8,2923.6,0.0501]
[1645178740170,6.49,2923.7,2922.8,2.7819]
[1645178740364,0.94994971,2923.2,2922.8,2.7819]
[1645178740563,0.49,2923.1,2922.7,7.7517]
[1645178740763,0.3,2923.2,2922.7,3.0414]
[1645178740965,0.3,2923.2,2922.7,2.55586252]
[1645178741263,1.34578,2923.4,2922.8,0.8557461]
[1645178741467,0.79,2923.4,2922.7,2.55586252]
[1645178741662,0.49,2923.4,2922.5,0.01383628]
[1645178741863,0.79,2923.4,2922.6,1.45907058]
[1645178742062,0.49,2923.4,2922.6,1.39880528]
[1645178742262,0.49,2923.4,2922.5,0.01383628]
[1645178742463,1.3459,2923.4,2922.5,0.01383628]
[1645178742665,1.71175,2923.2,2922.5,0.01383628]
[1645178742865,0.49,2923.1,2922.5,0.01383628]
[1645178743305,3.5,2923.0,2922.5,0.01383628]
[1645178743517,0.49,2922.9,2922.5,0.01383628]
[1645178743710,4.65621,2922.8,2922.7,0.00474097]
[1645178743911,6.4676,2922.8,2922.7,0.00474097]
[1645178744112,6.1676,2922.8,2922.7,0.00474097]
[1645178744312,2.6676,2922.8,2922.7,0.00474097]
[1645178744515,2.0,2922.7,2922.0,1.83126748]
[1645178744715,0.49,2922.6,2922.0,1.83126748]
[1645178744919,0.85601,2922.7,2922.6,0.00474101]
[1645178745119,1.34601,2922.7,2922.6,0.00474101]
[1645178745718,1.64601,2922.7,2921.7,1.2471]
[1645178745917,0.8562,2922.4,2921.7,1.2471]
[1645178746119,0.85619,2922.3,2921.7,1.2471]
[1645178746319,0.3,2922.4,2921.7,1.2471]
[1645178746917,0.79,2922.4,2921.7,1.2471]
[1645178747152,0.85614,2922.2,2921.7,1.2471]
[1645178747354,1.15614,2922.2,2921.5,1.18391766]
[1645178747556,0.3,2922.2,2921.5,1.18391766]
[1645178747854,1.7124,2922.2,2921.5,1.18391766]
[1645178748056,0.3,2922.3,2921.5,1.18391766]
[1645178748255,0.3,2922.3,2921.5,2.04005366]
[1645178748457,0.3,2922.3,2921.7,0.00474174]
[1645178748655,0.00474038,2922.5,2921.7,0.00474174]
[1645178748857,0.00474038,2922.5,2922.0,0.8720342]
[1645178749058,0.00474038,2922.5,2921.7,0.00474174]
[1645178749261,2.86856,2922.4,2921.7,0.00474174]
[1645178749457,2.86856,2922.4,2921.4,2.8033]
[1645178749458,2.01252,2922.4,2921.4,2.8033]
[1645178749659,2.01252,2922.4,2922.0,0.00474154]
[1645178750062,0.3,2922.3,2922.0,0.00474154]
[1645178750259,1.7124,2922.2,2922.0,0.00474154]
[1645178750460,0.8562,2922.1,2922.0,0.00474154]
[1645178751012,2.0124,2922.2,2922.0,0.00474154]
[1645178751013,1.31191334,2922.2,2922.0,0.00474154]
[1645178751817,0.8562,2922.1,2921.5,1.1327009]
[1645178752015,0.8562,2922.1,2922.0,0.00474154]
[1645178752618,0.8562,2922.1,2922.0,0.00360267]
[1645178753021,0.8562,2922.1,2921.6,0.00445068]
[1645178753422,0.49,2922.0,2921.4,0.00445068]
[1645178753621,0.85646,2921.9,2921.4,0.00445068]
[1645178753820,0.49,2921.8,2921.4,0.00445068]
[1645178754020,1.34068974,2921.8,2921.4,0.00445068]
[1645178754860,0.85638,2921.7,2921.4,0.00445068]
[1645178755062,0.49,2921.6,2921.4,0.00445068]
[1645178756868,0.49,2921.6,2921.4,0.0091927]
[1645178757669,0.49,2921.6,2921.2,7.28345991]
[1645178757868,0.49,2921.6,2921.0,1.2368]
[1645178757869,1.71289,2921.5,2921.0,1.2368]
[1645178758069,1.71289,2921.5,2921.4,0.00474202]
[1645178758070,2.20289,2921.5,2921.4,0.00474202]
[1645178758910,5.70289,2921.5,2921.0,0.1]
[1645178759110,0.85656,2921.3,2921.0,0.1]
[1645178759310,0.49,2921.2,2921.0,0.1]
[1645178759712,0.48588632,2921.2,2921.0,0.1]
[1645178759909,0.5,2921.1,2921.0,0.1]
[1645178760409,29.48588632,2921.2,2921.0,0.1]
[1645178760610,0.5,2921.1,2921.0,0.1]
[1645178765567,0.5,2921.1,2921.0,0.07372407]
[1645178767012,0.53160101,2921.1,2921.0,0.07372407]
[1645178770958,0.85656,2921.3,2921.2,0.95199826]
[1645178771562,1.71311,2921.4,2921.2,1.80819826]
[1645178771563,0.5,2921.4,2921.2,1.80819826]
[1645178772567,0.5,2921.4,2921.2,1.81294045]
[1645178772963,3.4,2921.3,2921.2,0.96114738]
[1645178773415,3.4,2921.3,2921.2,0.95640519]
[1645178773616,3.4,2921.3,2921.2,0.95526632]
[1645178776822,3.4,2921.3,2921.2,1.29804862]
[1645178777256,3.4,2921.3,2921.2,2.75755669]
[1645178777861,3.4,2921.3,2921.2,2.45755669]
[1645178778261,3.39552337,2921.3,2921.2,2.45755669]
[1645178778463,0.00438316,2922.0,2921.4,0.85608]
[1645178778766,0.00438316,2922.0,2921.5,4.91278258]
[1645178778965,0.00438316,2922.0,2921.6,1.45940806]
[1645178779162,0.00438316,2922.0,2921.6,1.46381499]
[1645178779363,0.00438316,2922.0,2921.7,1.46381499]
[1645178779563,0.02573279,2922.5,2921.7,1.16039693]
[1645178779765,0.02573279,2922.5,2922.3,1.11804396]
[1645178779965,0.856,2922.7,2922.3,1.97843089]
[1645178780166,0.02109,2922.8,2922.3,1.97843089]
[1645178780370,3.5,2923.4,2922.3,2.57363089]
[1645178780371,0.02108,2923.4,2922.3,2.57363089]
[1645178780564,0.02573279,2923.3,2922.3,2.57363089]
[1645178781014,0.00438306,2922.7,2922.3,2.57363089]
[1645178781213,0.00438306,2922.7,2922.6,0.3]
[1645178781414,0.00438306,2922.7,2922.6,0.5741]
[1645178781815,0.02573279,2923.3,2922.6,0.5741]
[1645178782015,0.02573279,2923.3,2922.6,0.57850693]
[1645178782215,0.00423836,2922.8,2922.6,1.98568]
[1645178782618,0.00423836,2922.8,2922.7,0.3]
[1645178782821,0.00423836,2922.8,2922.6,2.71158]
[1645178783026,0.02104,2924.0,2922.7,5.82216721]
[1645178783323,0.00425914,2922.9,2922.8,2.71116]
[1645178783520,0.00425914,2922.9,2922.8,4.83519338]
[1645178783720,0.00425914,2922.9,2922.8,5.13519338]
[1645178783919,0.00425914,2922.9,2922.8,3.67626]
[1645178784321,0.02103,2924.1,2923.1,2.014185]
[1645178784322,0.87664,2924.1,2923.1,2.014185]
[1645178784568,0.85561,2924.1,2923.5,0.83794009]
[1645178785871,0.00406111,2923.9,2923.5,1.45534009]
[1645178786369,0.00406111,2923.9,2923.5,2.31099009]
[1645178786571,0.85561,2924.1,2923.5,2.31099009]
[1645178786770,0.85561,2924.1,2923.5,2.28471416]
[1645178786970,0.0040678,2923.8,2923.5,2.28471416]
[1645178787770,0.85561,2924.1,2923.5,2.28471416]
[1645178788173,0.00406783,2923.8,2923.5,2.28471416]
[1645178789017,0.85561,2924.1,2923.5,2.28471416]
[1645178789417,3.4040809,2923.8,2923.5,2.28471416]
[1645178790216,3.4,2923.8,2923.5,2.28471416]
[1645178790618,3.40408382,2923.8,2923.5,2.28471416]
[1645178790820,3.40408382,2923.8,2923.5,2.28225221]
[1645178791417,3.4,2923.8,2923.5,2.28225221]
[1645178791818,3.40408382,2923.8,2923.5,2.28225221]
[1645178792064,3.40408382,2923.8,2923.7,0.02159604]
[1645178792669,3.4,2923.8,2923.7,0.02159604]
[1645178794770,3.4,2923.8,2923.7,0.02045717]
[1645178796814,3.4,2923.8,2923.6,0.3]
[1645178797813,3.40408233,2923.8,2923.6,0.3]
[1645178798211,3.40408233,2923.8,2923.5,1.67584651]
[1645178798622,3.4,2923.8,2923.5,1.67584651]
[1645178798816,3.40408237,2923.8,2923.5,1.67584651]
[1645178799214,3.40408237,2923.8,2923.5,2.53149651]
[1645178799415,3.40408237,2923.8,2923.5,3.38697651]
[1645178799868,3.40408237,2923.8,2923.5,3.36124372]
[1645178799869,3.4,2923.8,2923.5,3.36124372]
[1645178800074,3.40408236,2923.8,2923.6,21.6707874]
[1645178800272,3.40408236,2923.8,2923.6,2.0107874]
[1645178800969,3.40408236,2923.8,2923.7,19.96]
[1645178801171,3.40408236,2923.8,2923.7,20.6669]
[1645178801172,3.4,2923.8,2923.7,20.6669]
[1645178801366,3.4,2923.8,2923.7,21.6669]
[1645178801568,0.88107279,2925.0,2923.8,6.0]
[1645178801768,0.85534,2925.0,2924.3,1.7106]
[1645178801969,0.49,2925.2,2924.3,2.3459]
[1645178801970,0.02573279,2924.9,2924.3,2.3459]
[1645178802169,0.02573279,2924.9,2924.3,1.4906]
[1645178802369,0.02573279,2924.4,2924.3,0.6353]
[1645178802568,0.00206509,2924.8,2924.3,0.6353]
[1645178802771,0.00206509,2924.8,2924.5,1.16148939]
[1645178802972,0.85745509,2924.8,2924.5,1.16148939]
[1645178803417,0.85539,2924.8,2924.5,1.16148939]
[1645178803924,0.85980548,2924.8,2924.5,1.16148939]
[1645178804218,0.00441548,2924.8,2924.5,1.16148939]
[1645178804619,0.85532,2925.0,2924.5,1.16148939]
[1645178804921,0.00448297,2924.8,2924.5,1.46148939]
[1645178805117,0.00448297,2924.8,2924.5,1.16148939]
[1645178805720,0.85987297,2924.8,2924.3,1.2248]
[1645178805920,0.02573279,2924.6,2924.3,0.3]
[1645178806319,0.02573279,2924.6,2924.2,1.7106]
[1645178806722,0.00448297,2924.8,2924.2,1.7106]
[1645178806919,0.00448297,2924.8,2924.0,1.71082]
[1645178806920,1.71101,2924.7,2924.0,1.71082]
[1645178807369,0.02573279,2924.4,2924.0,1.71082]
[1645178807568,0.00448309,2924.6,2924.0,1.71082]
[1645178807772,0.02573279,2924.2,2923.9,1.81163693]
[1645178807971,1.71123,2924.3,2923.9,2.11163693]
[1645178808169,1.71123,2924.3,2923.9,0.3]
[1645178808373,1.71123,2924.3,2923.8,2.01104]
[1645178808573,0.00440037,2924.2,2923.8,2.01104]
[1645178808775,0.03013316,2924.2,2923.8,2.01104]
[1645178809573,0.02573279,2924.2,2923.8,2.01104]
[1645178809773,0.00440046,2924.1,2923.8,2.01104]
[1645178810173,0.00440046,2924.1,2923.8,2.86652]
[1645178810577,0.00440046,2924.1,2923.9,1.20807]
[1645178810822,0.02573279,2924.8,2923.9,1.20807]
[1645178811026,0.0044005,2924.1,2923.9,1.2028]
[1645178811322,0.0044005,2924.1,2923.9,3.05821]
[1645178811528,0.0044005,2924.1,2923.9,2.9135881]
[1645178811729,0.0044005,2924.1,2924.0,0.3]
[1645178811927,0.02573279,2924.5,2924.0,0.3]
[1645178812226,3.40205537,2924.1,2924.0,0.277]
[1645178812426,3.29878537,2924.1,2924.0,0.277]
[1645178813027,3.23838928,2924.1,2924.0,0.277]
[1645178813433,3.23838928,2924.1,2924.0,1.13243]
[1645178813830,3.23838928,2924.1,2924.0,0.277]
[1645178814034,3.23838928,2924.1,2923.9,1.85541]
[1645178814234,3.23838928,2924.1,2923.9,2.15541]
[1645178814868,3.23838928,2924.1,2923.9,1.15541]
[1645178815369,3.23838928,2924.1,2923.9,0.85541]
[1645178815768,3.23838928,2924.1,2923.8,1.71104]
[1645178815769,0.02573279,2924.0,2923.8,1.71104]
[1645178815970,3.24300036,2924.1,2923.8,1.71104]
[1645178816570,0.02573279,2924.0,2923.8,1.71104]
[1645178816971,0.02573279,2924.0,2923.8,2.01104]
[1645178817172,3.2430004,2924.1,2923.8,1.71104]
[1645178817972,3.23838928,2924.1,2923.8,1.71104]
[1645178818171,3.2430004,2924.1,2923.8,1.71104]
[1645178819226,0.02573279,2923.9,2923.8,1.71104]
[1645178819425,0.02573279,2923.9,2923.6,1.71119]
[1645178819621,0.85562,2924.0,2923.6,1.71119]
[1645178820020,0.02573279,2923.8,2923.6,1.71119]
[1645178820922,0.02573279,2923.8,2923.6,1.68545721]
[1645178821523,0.02573279,2923.7,2923.6,1.68545721]
[1645178822171,0.02573279,2923.7,2923.5,0.85558]
[1645178822973,0.0301442,2923.7,2923.5,0.85558]
[1645178823378,0.8858642,2923.7,2923.3,0.85577]
[1645178823577,0.02573279,2923.4,2923.3,0.85577]
[1645178824582,0.02573279,2923.4,2923.0,0.85583]
[1645178824777,0.86019161,2923.5,2923.0,1.15583]
[1645178824778,0.02573279,2923.1,2923.0,1.15583]
[1645178824978,0.02573279,2923.1,2923.0,0.85583]
[1645178825279,0.02573279,2923.4,2923.0,0.85583]
[1645178825477,0.00441185,2923.2,2923.0,1.15583]
[1645178826121,0.02573279,2923.1,2923.0,1.15583]
[1645178826719,0.00441087,2923.2,2923.0,1.15583]
[1645178827522,0.88158279,2923.3,2923.0,1.15583]
[1645178827720,0.88158279,2923.3,2923.0,0.85583]
[1645178827721,0.02573279,2923.1,2923.0,0.85583]
[1645178828222,0.02573279,2923.1,2922.7,1.7117]
[1645178828424,0.00441087,2923.2,2922.7,1.7117]
[1645178828823,3.15937735,2923.5,2922.7,1.63313693]
[1645178829023,0.00441103,2923.0,2922.7,1.63313693]
[1645178829225,0.02573279,2922.9,2922.7,1.63313693]
[1645178830164,0.03014397,2922.9,2922.7,1.63313693]
[1645178830364,0.03014397,2922.9,2922.6,7.3]
[1645178831068,0.02573279,2922.9,2922.6,7.3]
[1645178831267,0.02573279,2922.9,2922.6,7.6]
[1645178831468,0.00441122,2922.9,2922.6,7.3]
[1645178831669,0.00441122,2922.9,2922.6,10.8]
[1645178832272,0.02573279,2923.1,2922.6,10.8]
[1645178832468,0.02573279,2923.1,2922.7,0.8559]
[1645178832670,0.00441122,2922.9,2922.7,0.8559]
[1645178833521,0.02573279,2923.3,2922.7,0.8559]
[1645178833723,0.00441119,2922.9,2922.7,0.8559]
[1645178834321,0.03014398,2922.9,2922.8,0.3]
[1645178834720,0.02573279,2922.9,2922.8,0.3]
[1645178835721,3.42573279,2922.9,2922.8,0.3]
[1645178836722,3.42573279,2922.9,2922.7,0.8559]
[1645178837166,3.4,2922.9,2922.7,0.8559]
[1645178837366,3.40441118,2922.9,2922.7,0.8559]
[1645178837769,3.40441118,2922.9,2922.6,7.3]
[1645178837968,0.02573279,2922.7,2922.6,7.3]
[1645178838370,0.02573279,2922.7,2922.5,0.85595]
[1645178838771,0.00427896,2922.8,2922.5,0.85595]
[1645178839172,0.02573279,2922.6,2922.5,0.85595]
[1645178839472,0.02573279,2922.6,2922.5,1.15595]
[1645178839672,0.02573279,2922.6,2922.5,0.85595]
[1645178840274,0.02573279,2922.6,2922.3,1.71183]
[1645178840481,0.00427904,2922.7,2922.3,1.71183]
[1645178840677,3.4,2922.9,2922.3,1.71183]
[1645178840937,0.02573279,2922.7,2922.3,1.71183]
[1645178841135,0.00428354,2922.6,2922.3,1.71183]
[1645178841331,0.00428354,2922.6,2922.4,1.07983259]
[1645178841534,0.00428354,2922.6,2922.3,1.71183]
[1645178841932,0.02573279,2922.8,2922.3,1.68609721]
[1645178842133,0.00407286,2922.6,2922.3,1.98609721]
[1645178842835,0.00407286,2922.6,2922.4,0.92695043]
[1645178843033,0.02573279,2922.5,2922.4,1.78283043]
[1645178843234,0.02573279,2922.5,2922.4,0.92695043]
[1645178843441,3.4,2922.9,2922.4,0.92695043]
[1645178843442,0.00407283,2922.6,2922.4,0.92695043]
[1645178844137,0.00407283,2922.6,2922.4,1.78284043]
[1645178844336,0.02573279,2922.8,2922.4,1.78284043]
[1645178844573,0.00407957,2922.6,2922.4,1.78284043]
[1645178845574,0.02573279,2922.7,2922.4,2.08284043]
[1645178845773,3.4,2922.9,2922.4,2.08284043]
[1645178845774,0.00409364,2922.6,2922.4,2.08284043]
[1645178846673,0.00409364,2922.6,2922.5,1.45894814]
[1645178846875,3.42573279,2922.9,2922.4,2.08284043]
[1645178846876,0.02573279,2922.7,2922.4,2.08284043]
[1645178847074,0.00409364,2922.6,2922.4,2.08284043]
[1645178848074,0.85595,2922.8,2922.4,2.08284043]
[1645178848343,0.02982551,2922.6,2922.4,2.08284043]
[1645178848743,0.02982551,2922.6,2922.4,1.78284043]
[1645178849143,0.85595,2922.8,2922.4,1.78284043]
[1645178849344,0.00409154,2922.6,2922.4,1.78284043]
[1645178849546,0.02573279,2922.5,2922.4,1.78284043]
[1645178849746,0.00409154,2922.6,2922.4,1.78284043]
[1645178849946,0.00409154,2922.6,2922.4,1.7565645]
[1645178850349,3.42573279,2922.9,2922.4,1.7565645]
[1645178850547,0.00409154,2922.6,2922.4,3.36337647]
[1645178850747,0.02573279,2922.5,2922.4,0.3]
[1645178850949,0.02573279,2922.5,2922.2,2.76297704]
[1645178851650,0.86010154,2922.6,2922.2,2.76297704]
[1645178851651,0.85601,2922.6,2922.3,1.4590529]
[1645178851850,0.85601,2922.6,2922.4,0.88547871]
[1645178851851,0.00409174,2922.5,2922.4,0.88547871]
[1645178852080,0.00409174,2922.5,2922.2,2.76297704]
[1645178852482,0.00409174,2922.5,2922.2,1.90693704]
[1645178852483,0.02573279,2922.3,2922.2,1.90693704]
[1645178852682,0.02573279,2922.3,2922.2,3.36602979]
[1645178853283,0.85607,2922.4,2922.2,3.36602979]
[1645178853486,0.00409185,2922.5,2922.2,2.76294704]
[1645178853686,0.02573279,2922.3,2922.2,2.46294704]
[1645178853886,0.3,2922.6,2922.2,3.06605433]
[1645178854087,0.02573279,2922.6,2922.2,1.60693704]
[1645178854286,0.00409185,2922.5,2922.2,1.60693704]
[1645178855088,2.0341,2922.8,2922.2,1.60693704]
[1645178855288,0.02573279,2922.5,2922.2,2.46296704]
[1645178855490,0.02982462,2922.5,2922.2,2.46296704]
[1645178855686,0.02982462,2922.5,2922.2,1.60693704]
[1645178856326,0.02573279,2922.5,2922.2,1.60693704]
[1645178857123,0.02982461,2922.5,2922.2,1.60693704]
[1645178857324,0.85609,2922.4,2922.1,1.12917729]
[1645178857525,1.15609,2922.4,2922.2,1.45912749]
[1645178858133,0.85609,2922.4,2922.2,1.45912749]
[1645178858331,0.00409182,2922.5,2922.2,2.61512749]
[1645178858531,0.00409182,2922.5,2922.3,1.45912749]
[1645178858731,0.02573279,2922.8,2922.3,1.45912749]
[1645178858933,3.40409183,2922.5,2922.3,1.45912749]
[1645178859995,3.4,2922.5,2922.3,1.45912749]
[1645178860295,3.4040918,2922.5,2922.3,1.45912749]
[1645178861097,3.4,2922.5,2922.3,1.45912749]
[1645178861297,4.25603,2922.5,2922.3,1.45912749]
[1645178861496,0.02573279,2922.4,2921.9,1.6462]
[1645178861896,0.3,2922.4,2922.0,1.45919741]
[1645178862097,3.7040918,2922.5,2922.0,1.45919741]
[1645178862299,4.55603,2922.5,2922.0,1.45919741]
[1645178862696,0.00409194,2922.3,2922.0,1.45919741]
[1645178863324,0.86018194,2922.3,2922.1,0.86481181]
[1645178863523,0.86018194,2922.3,2922.2,1.45919741]
[1645178863524,0.85609,2922.3,2922.2,1.45919741]
[1645178863923,0.86018198,2922.3,2922.2,1.45919741]
[1645178864124,0.00409198,2922.3,2922.2,1.45919741]
[1645178864724,4.58175279,2922.5,2922.2,1.75919741]
[1645178864926,4.58175279,2922.5,2922.3,1.45919741]
[1645178865127,0.00409191,2922.4,2922.3,1.45919741]
[1645178865325,0.00409191,2922.4,2922.0,0.3]
[1645178865529,0.00409191,2922.4,2922.1,1.45925589]
[1645178865725,0.02573279,2922.2,2921.9,1.9462]
[1645178865929,0.02573279,2922.2,2921.9,1.6462]
[1645178866127,3.7,2922.5,2922.3,1.0755259]
[1645178866326,0.0298247,2922.4,2922.3,1.0755259]
[1645178866526,0.0298247,2922.4,2922.3,2.53473108]
[1645178867179,0.02573279,2922.4,2922.3,2.53473108]
[1645178868675,0.02573279,2922.4,2922.3,1.45920518]
[1645178869077,0.85611,2922.3,2922.0,0.85608]
[1645178869275,0.85611,2922.3,2922.1,1.45926893]
[1645178869875,0.86020198,2922.3,2922.1,1.45926893]
[1645178870375,0.02573279,2922.2,2922.1,1.45926893]
[1645178870830,0.02573279,2922.2,2922.1,1.432993]
[1645178876877,0.85611,2922.3,2922.1,1.432993]
[1645178877078,0.88593479,2922.3,2922.1,1.432993]
[1645178877878,1.18593479,2922.3,2922.1,1.432993]
[1645178878077,1.18184279,2922.3,2922.1,1.432993]
[1645178878328,1.18593475,2922.3,2922.1,1.432993]
[1645178879137,1.18184279,2922.3,2922.1,1.432993]
[1645178879335,1.18593475,2922.3,2922.1,1.432993]
[1645178880336,1.18184279,2922.3,2922.1,1.432993]
[1645178880537,1.18184279,2922.3,2922.0,2.01211]
[1645178880538,1.18593475,2922.3,2922.0,1.71211]
[1645178880740,3.5,2922.2,2921.9,0.85611]
[1645178880944,2.01635596,2922.3,2921.9,0.85611]
[1645178881342,0.02573279,2922.0,2921.9,0.85611]